Cogmind - Beta 14 @@@ ROGUE MODE // 2024.10.22 @ 00:39:53 Player: WazdakkaGutsmek Result: Destroyed by K4-UNX(R) with Subdweller Laser Performance ------------- Evolutions (0) 0 Regions Visited (2) 400 Robots Destroyed (24) 120 Value Destroyed (556) 556 Prototype IDs (4) 80 Alien Tech Used (0) 0 Bonus (0) 0 TOTAL SCORE: 1156 Bonus ------- None Cogmind --------- Core Integrity 0/250 Matter 115/300 Energy 250/250 System Corruption 2% Temperature Cool (6) Movement Core (150) Ox2 Location -10/Subcaves Parts ------- > --- POWER (1) -------- Ion Engine > --- PROPULSION (2) --- (None) > --- UTILITY (2) ------ (None) > --- WEAPON (2) ------- Subdweller Machine Gun > --- INVENTORY (5) ---- Light Treads Light Treads Huge Storage Unit Barrage Gun Peak State ------------ > --- POWER ------------ Light Nuclear Core > --- PROPULSION ------- Light Treads Light Treads > --- UTILITY ---------- Scrap Shield > --- WEAPON ----------- Assault Rifle Barrage Gun > --- INVENTORY -------- Ion Engine Light Treads Light Treads Huge Storage Unit Grenade Launcher [Rating: 13] Favorites ----------- Power Light Ion Engine Engine Light Ion Engine Power Core Light Nuclear Core Propulsion Light Treads Treads Light Treads Leg Aluminum Leg Utility High-capacity Storage Unit Storage High-capacity Storage Unit Protection Scrap Shield Weapon Medium Laser Energy Gun Medium Laser Energy Cannon Subdweller Beam Cannon Ballistic Gun Assault Rifle Launcher Grenade Launcher Build | -11 -10 -10 ------- Run | Yrd Mat Sub Slots Evolved . | . . . Power . | . . . Propulsion . | . . . Utility . | . . . Weapon . | . . . Parts Attached 20 | . 10 10 Power 2 | . . 2 Engine 1 | . . 1 Core 1 | . . 1 Reactor . | . . . Propulsion 3 | . 3 . Treads 2 | . 2 . Leg 1 | . 1 . Wheel . | . . . Hover . | . . . Flight . | . . . Utility 4 | . 3 1 Device . | . . . Storage 2 | . 2 . Processor . | . . . Hackware . | . . . Protection 2 | . 1 1 Artifact . | . . . Weapon 11 | . 4 7 Energy Gun 2 | . 2 . Energy Cannon 1 | . . 1 Ballistic Gun 5 | . 1 4 Ballistic Cannon . | . . . Launcher 3 | . 1 2 Special Weapon . | . . . Impact Weapon . | . . . Slashing Weapon . | . . . Piercing Weapon . | . . . Special Melee Weapon . | . . . Unidentified Prototypes . | . . . Parts Lost 9 | . 4 5 Power 2 | . 1 1 Propulsion 4 | . 2 2 Utility 1 | . . 1 Weapon 2 | . 1 1 Highest Loss Streak 3 | . 3 3 To Critical Strikes 1 | . . 1 Average Slot Usage (%) 74 | . 77 71 Engine 6 | . 10 . Core 1 | . . 5 Treads 14 | . 6 28 Leg 12 | . 21 . Storage 9 | . 14 3 Protection 4 | . 1 8 Energy Gun 7 | . 10 2 Ballistic Gun 9 | . 3 17 Launcher 6 | . 8 3 Peak Build Rating 13 | . 7 13 Average Rating 7 | . 6 9 On Entrance 5 | 6 6 5 Naked Turns . | . . . Heaviest Build 48 | 12 48 45 Greatest Support 40 | 20 40 40 Greatest Overweight (x) 2 | . 2 2 Average Overweight (x) . | . 1 . Largest Inventory Capacity 20 | . 20 20 Average Capacity 14 | . 17 8 Most Carried 11 | . 11 11 Average Carried 7 | . 8 6 Final Capacity 20 | 8 20 5 Final Carried 11 | 6 11 4 Class Distribution -------------------- 100% | Mutant Dominant Class ---------------- Mutant | -10/Materials Mutant | -10/Subcaves Resources | -11 -10 -10 ----------- Run | Yrd Mat Sub Matter Collected 822 | 192 388 242 Remotely . | . . . Salvage Created 769 | . 545 224 Parts 46 | . 31 15 Haulers Intercepted 2 | . 2 . Recyclers Shooed 1 | . 1 . Parts Field Recycled . | . . . Retrieved Matter . | . . . Parts Self-Destructed . | . . . Prevented . | . . . Kills | -11 -10 -10 ------- Run | Yrd Mat Sub Combat Hostiles Destroyed 15 | . 8 7 Guns 7 | . 5 2 Cannons 1 | . . 1 AOE 5 | . 1 4 Classes Destroyed 8 | . 7 1 Worker 3 | . 3 . Builder 1 | . 1 . Hauler 2 | . 2 . Recycler 1 | . 1 . Watcher 2 | . 2 . Swarmer 3 | . 3 . Grunt 5 | . 5 . Subdweller 7 | . . 7 Best Kill Streak 3 | . 3 2 Combat Bots Only 3 | . 3 2 Max Kills in Single Turn 1 | . 1 1 Gunslinging . | . . . Exploded 1 | . 1 1 Melee . | . . . Uniques/NPCs Destroyed . | . . . Combat | -11 -10 -10 -------- Run | Yrd Mat Sub Hostile Shots Fired 111 | . 53 58 Missed 27 | . 12 15 Damage Taken 1553 | . 550 1003 Core 266 | . 97 169 Absorbed by Shields . | . . . Core Remaining (%) 100 | 100 . . Volleys Fired 121 | . 77 44 Largest 2 | . 2 2 Hottest 108 | . 90 108 Shots Fired 157 | . 80 77 Gun 131 | . 77 54 Cannon 7 | . . 7 Launcher 19 | . 3 16 Special . | . . . Kinetic 71 | . 17 54 Thermal 64 | . 57 7 Explosive 19 | . 3 16 Electromagnetic 3 | . 3 . Robot Hit Streak 11 | . 11 11 Robot Miss Streak 4 | . 4 3 Penetration Max . | . . . Secondary Targets . | . . . Shots Hit Robots 100 | . 53 47 Core Hits 41 | . 27 14 Critical Kills . | . . . Critical Parts Destroyed . | . . . Critical Strikes 6 | . 6 . Burn 6 | . 6 . Melee Attacks . | . . . Impact . | . . . Slashing . | . . . Piercing . | . . . Sneak Attacks . | . . . Combat Hostiles . | . . . Follow-up Attacks . | . . . Damage Inflicted 2025 | . 780 1245 Guns 1244 | . 681 563 Cannons 77 | . . 77 Explosions 703 | . 98 605 Melee . | . . . Ramming 1 | . 1 . Kinetic 732 | . 169 563 Thermal 576 | . 499 77 Explosive 703 | . 98 605 Electromagnetic 13 | . 13 . Impact . | . . . Slashing . | . . . Piercing . | . . . Highest Corruption 2 | . 2 2 Average Corruption 2 | . 2 2 Corruption Purged . | . . . Corruption Blocked . | . . . Effects 23 | . 8 15 Message Errors 6 | . 3 3 Matter Fused 5 | . 1 4 Heat Flow Errors 4 | . 2 2 Energy Discharges 5 | . . 5 Data Loss (minor) 1 | . 1 . Data Loss (major) 1 | . 1 . Misfires 1 | . . 1 Overload Shots . | . . . Overflow Damage . | . . . Projectiles . | . . . Explosions . | . . . Melee . | . . . Knockbacks . | . . . Impact . | . . . Kinetic . | . . . Secondary . | . . . Self-Inflicted Damage 64 | . 23 41 Shots 3 | . 1 2 Rammed . | . . . Targets Rammed 1 | . 1 . Kicked 1 | . 1 . Crushed . | . . . Highest Temperature 181 | . 115 181 Average Temperature 40 | . 40 40 Received Heat Transfer 534 | . 288 246 Siege Activations . | . . . Robots Corrupted . | . . . Combat Hostiles . | . . . Parts Fried . | . . . Impact Corruptions . | . . . Robots Melted 2 | . 2 . Combat Hostiles 2 | . 2 . Parts Melted 7 | . 6 1 Heat Transferred 2035 | . 1924 111 Parts Sabotaged . | . . . Parts Stolen . | . . . Parts Stripped . | . . . Power Chain Reactions . | . . . Alert | -11 -10 -10 ------- Run | Yrd Mat Sub Peak Influence 113 | . 113 . Initial . | . . . Average 52 | . 52 . Maximum Alert Level . | . . . Low Security (%) 100 | . 100 . Level 1 . | . . . Level 2 . | . . . Level 3 . | . . . Level 4 . | . . . Level 5 . | . . . High Security . | . . . Max Security . | . . . Squads Dispatched 1 | . 1 . Investigation . | . . . Extermination . | . . . Reinforcement 1 | . 1 . Assault . | . . . Garrison . | . . . Intercept . | . . . Searches Triggered . | . . . Construction Impeded . | . . . Haulers Reinforced . | . . . Active Scanning Responses . | . . . Cargo Convoy Interrupts . | . . . Stealth | -11 -10 -10 --------- Run | Yrd Mat Sub Distress Signals . | . . . Communications Jammed . | . . . Distress Signals . | . . . Times Spotted 33 | . 24 9 Peak Tracking Total 3 | . 3 2 Tactical Retreats 2 | . 2 . Traps | -11 -10 -10 ------- Run | Yrd Mat Sub Traps Triggered 6 | . 4 2 Indirectly . | . . . Trap Hack Attempts . | . . . Triggered . | . . . Disarmed . | . . . Reprogrammed . | . . . Reused . | . . . Traps Extracted . | . . . Installed . | . . . Triggered . | . . . Machines | -11 -10 -10 ---------- Run | Yrd Mat Sub Machines Disabled . | . . . Max in Single Turn . | . . . Machines Repaired . | . . . Machines Dismantled . | . . . Machines Sabotaged . | . . . Overloaded Fab Kills . | . . . Hacking | -11 -10 -10 --------- Run | Yrd Mat Sub Machines Accessed 4 | . 4 . Terminals 4 | . 4 . Fabricators . | . . . Repair Stations . | . . . Recycling Units . | . . . Scanalyzers . | . . . Garrison Access . | . . . Total Hacks 16 | . 16 . Successful 7 | . 7 . Failed 9 | . 9 . Catastrophic . | . . . Database Lockouts . | . . . Manual 13 | . 13 . Terminals 16 | . 16 . Fabricators . | . . . Repair Stations . | . . . Recycling Units . | . . . Scanalyzers . | . . . Garrison Access . | . . . Terminal Hacks 3 | . 3 . Prototype ID Bank 2 | . 2 . Zone Layout 1 | . 1 . Fabricator Hacks . | . . . Repair Station Hacks . | . . . Recycling Unit Hacks . | . . . Scanalyzer . | . . . Garrison Access Hacks . | . . . Unauthorized Hacks 4 | . 4 . Terminals 4 | . 4 . Skim 4 | . 4 . Fabricators . | . . . Repair Stations . | . . . Recycling Units . | . . . Scanalyzers . | . . . Garrison Access . | . . . Data Cores Recovered . | . . . Used . | . . . Hacking Detections 3 | . 3 . Full Trace Events . | . . . Feedback Events . | . . . Feedback Blocked . | . . . Robot Schematics Acquired . | . . . Robots Built . | . . . Authchips . | . . . Time . | . . . Total Robot Build Rating . | . . . Part Schematics Acquired . | . . . Parts Built . | . . . Authchips . | . . . Time . | . . . Total Part Build Rating . | . . . Parts Repaired . | . . . Time . | . . . Parts Recycled . | . . . Recycled Matter . | . . . Retrieved Matter . | . . . Retrieved Components . | . . . Parts Scanalyzed . | . . . Part Schematics Acquired . | . . . Parts Damaged . | . . . Bothacking | -11 -10 -10 ------------ Run | Yrd Mat Sub Used RIF Installer . | . . . Robots Hacked . | . . . Non-combat . | . . . Combat . | . . . Robot Hacks Applied . | . . . Relay Couplers Released . | . . . Fabnet Peak Effective % . | . . . Robots Rewired . | . . . Allies Hacked . | . . . Hacks Repelled . | . . . Allies | -11 -10 -10 -------- Run | Yrd Mat Sub Total Allies . | . . . Largest Group . | . . . Highest-Rated Group . | . . . Highest-Rated Ally . | . . . Total Orders . | . . . Ally Attacks . | . . . Total Damage . | . . . Kills . | . . . Allies Corrupted . | . . . Allies Melted . | . . . Intel | -11 -10 -10 ------- Run | Yrd Mat Sub Robot Analysis Total . | . . . Derelict Logs Recovered . | . . . Drone Launches . | . . . Drone Recoveries . | . . . Exploration | -11 -10 -10 ------------- Run | Yrd Mat Sub Turns Passed 2716 | . 1654 1062 Spaces Moved 1183 | 1 664 518 Core 1 | . . 1 Treads 675 | . 158 517 Legs 507 | 1 506 . Wheels . | . . . Hover . | . . . Flight . | . . . Fastest Speed 120 | 120 120 150 Average Speed 195 | 120 211 174 Slowest Speed 260 | 120 260 240 Overloaded Moves . | . . . Propulsion Burnouts . | . . . Robots Hopped . | . . . Cave-ins Triggered . | . . . Exploration Rate (%) 38 | 2 78 35 Regions Visited 2 Branch Regions 1 Pre-discovered Areas . | . . . Known Exits Taken . | . . . Unknown Exits Taken 2 | 1 1 . Scrap Searched . | . . . Spaces Dug . | . . . Terrain Destroyed 99 | . 18 81 Melee . | . . . Projectile . | . . . AOE 99 | . 18 81 Terrain Rammed . | . . . Walls Destroyed . | . . . Machines Disabled . | . . . Actions | -11 -10 -10 --------- Run | Yrd Mat Sub Total 1433 | . 833 600 Wait 82 | . 68 14 Move 1181 | . 663 518 Hop . | . . . Pick Up 11 | . 10 1 Fast Attach 12 | . 6 6 Attach 6 | . 4 2 Detach 1 | . 1 . Swap 2 | . . 2 Drop 14 | . 3 11 Fire 121 | . 77 44 Melee . | . . . Ram . | . . . Kick 1 | . 1 . Crush . | . . . Escape Stasis . | . . . Rewire . | . . . Trap . | . . . Miscellaneous 2 | . . 2 Route ------- -11/Scrapyard -10/Materials (discovered 4 exits: [*Mat x2] / [*Min] / [*Sub]) -10/Subcaves (discovered 2 exits: [*Mat x2]) History --------- Turn | Location | Event 1 | -11/Scrapyard | Discovered new exit (range 0) 1 | -11/Scrapyard | Entered Materials 156 | -10/Materials | Discovered new exit (range 7) 308 | -10/Materials | Build established: Mutant 308 | -10/Materials | Discovered new exit (range 8) 1212 | -10/Materials | Discovered new exit (range 12) 1287 | -10/Materials | Lost 3 parts (1p2n) 1631 | -10/Materials | Discovered new exit (range 11) 1655 | -10/Materials | Entered Subcaves 1852 | -10/Subcaves | Shifting Twisted Machinery released Barrage Gun 1878 | -10/Subcaves | Shifting Twisted Machinery released Scrap Shield 2287 | -10/Subcaves | Discovered new exit (range 5) 2374 | -10/Subcaves | Shifting Twisted Machinery released Sub. Machine Gun 2396 | -10/Subcaves | Shifting Twisted Machinery released Sub. Beam Cannon 2587 | -10/Subcaves | Discovered new exit (range 14) 2646 | -10/Subcaves | Core integrity fell below 50% 2685 | -10/Subcaves | Core integrity fell below 20% 2717 | -10/Subcaves | Destroyed by K4-UNX(R) with Subdweller Laser Last Messages --------------- 02644_ System corrupted: Energy discharge (-32). 02673_ JK-KWD(R) destroyed. 02674_ System corrupted: FCS attempts to trigger Sub. Machine Gun. 02674_ System corrupted: Sub. Machine Gun misfires. 02677_ K4-UNX(R): "LEAVESUB!" 02677_ Subatomizers dissect the Sub. Monowheel. 02696_ Acquired 28 matter. O8-ZA5(R) emerges from concealment. 02701_ Subatomizers dissect the Sub. Monowheel. 02710_ Acquired 56 matter. 02711_ Lgt. Treads destroyed. 02713_ Grenade Launcher destroyed. 02714_ Sub. Machine Gun shoots sparks and powers down. 02715_ Subatomizers dissect the Sub. Monowheel. 02715_ Lgt. Treads destroyed. 02716_ The unstable cave ceiling collapses. Map ----- +----------------------------------------------------+ | ?????????????????????????????????????????????????? | | ?????????????????????????????????????????????????? | | ?????????????????????????????????????????????????? | | ?????????????????????????????????????????????????? | | ?????????????????????????????????????????????????? | | ?????????????????????????????????????????????????? | | ?????????????????????????????????????????????????? | | ?????????????????????????????????????????????????? | | ?????????????????????????????????????????????????? | | ?????????????????????????????????????????????????? | | ?????????????????????????????????????????????????? | | ??????????????????????????? #???????????????????? | | ??????????????????????????? ##????????????????? | | ??????????????????????????? ?????????????????? | | ??????????????????????????# ?????????????????? | | ?????????????????????????? ??????????????????? | | ?????????????????????????? ??????????????????? | | ?????????????????????????? #??????????????????? | | ?????????????????????????? ???????????????????? | | ?????????????????????????? #???????????????????? | | ?????????????????????????? ##??????????????????? | | ????????????????????????## ##?????????????????? | | ????????????????????????# #?????????????????? | | ???????????????????????? ##????????????????? | | ????????????????????????# = #= ###???????????? | | ????????????????????????#@ "#???????????? | | ???????????????####??#### ## " ??????????? | | ??????????????## ### ##?????????????????? | | ??????????????# ###??? ???????????? | | ??????????###### ### #??????????? | | ????????### ?## ##R #?????????? | | ???????## ??##### ### R #?????????? | | ??????## ?????## # #?????????? | | ??????# ????## # #??????????? | | ??????? #??## & ##?????????? | | ????????# ?## #?????????? | | ????????# ?# # = ????????? | | ?????????# ## ## # ### ????????? | | ??????????# #?# #??????????????? | | ???????????# ### #??????????????? | | ???????????# # #?????????????? | | ???????????## ## ######## #????????????? | | ???????????## ## ##???????# #????????????? | | ??????????## #????????? #????????????? | | ?????????## #???????????#????????????? | | ???????### ## #????????????????????????? | | ??????## #### ##????????????????????????? | | ??????# #??# #?????????????????????????? | | ??????# ## #??## #????????????????????????? | | ??????# ??## ###### #????????????????????????? | +----------------------------------------------------+ Best States ------------- Heat Dissipation 25 Energy Generation 14 Energy Capacity 250 Matter Stores 300 Matter Capacity 500 Sight Range 16 Terrain Scan Density 10 Armor Coverage 800 Evasion (%) 55 Recoil Reduction 2 Item Schematics ----------------- None Robot Schematics ------------------ None Fabricated ------------ Nothing Alien Tech Used ----------------- None Achievements -------------- None Challenges ------------ None Game ------ Seed NeutronSupersonicPurifier Manual? 0 Play Time 00:24:50 Cumulative 59.5 hours Start 2024.10.22 @ 00:21:29 End 2024.10.22 @ 00:39:53 Sessions 1 Manual Loads 0 Difficulty Rogue Special Mode None Game No. 59 Rogue 41 Adventurer 16 Explorer 2 Win Type - Total 1 Types 1/0/0/0/0/0/0/0/0 Lore% 13 Gallery% 43 Achievement% 37 Wizard Run 0 Options --------- Layout 2 ASCII 0 Keyboard 0 Movement Mouse Keybinds 1 Fullscreen 2 Font 24/Terminus Map View 50x44 Zoom Use 0% Tactical HUD 1 Map Filters NONE Filters NONE Steam X RUN: 74b0c8d5-d9d9-44de-8ed8-146487f63fb2